[Event "*** Titled Tuesday Blitz"]
[Site "Chess.com"]
[Date "2019.09.03"]
[Round "5"]
[White "ALEXJR20"]
[Black "scaryninja"]
[Result "1-0"]
[WhiteElo "2229"]
[BlackElo "2479"]
[TimeControl "180+2"]
[EndTime "16:06:41 PDT"]
[Termination "ALEXJR20 won by checkmate"]

1. c4 {[%clk 0:03:01.9]} 1... e5 {[%clk 0:03:00.5]} 2. e3 {[%clk 0:03:02.4]}
2... Nc6 {[%clk 0:03:02.4]} 3. Nc3 {[%clk 0:03:02.7]} 3... Bb4 {[%clk
0:03:03.1]} 4. Nd5 {[%clk 0:03:03.1]} 4... Nge7 {[%clk 0:03:03.6]} 5. Nxb4
{[%clk 0:03:03.3]} 5... Nxb4 {[%clk 0:03:05.5]} 6. a3 {[%clk 0:03:04.7]} 6...
Nbc6 {[%clk 0:03:06.2]} 7. b4 {[%clk 0:03:06.3]} 7... d6 {[%clk 0:03:07.3]} 8.
Bb2 {[%clk 0:03:04.5]} 8... O-O {[%clk 0:03:08.1]} 9. Nf3 {[%clk 0:03:05.9]}
9... f5 {[%clk 0:03:02.2]} 10. d4 {[%clk 0:03:04.4]} 10... e4 {[%clk 0:03:01.6]}
11. Nd2 {[%clk 0:03:04.4]} 11... d5 {[%clk 0:03:01.1]} 12. cxd5 {[%clk
0:03:03.6]} 12... Nxd5 {[%clk 0:03:01.8]} 13. Bc4 {[%clk 0:03:02.2]} 13... Be6
{[%clk 0:03:02.5]} 14. Qb3 {[%clk 0:03:02.2]} 14... Nce7 {[%clk 0:03:03.2]} 15.
O-O {[%clk 0:03:02]} 15... c6 {[%clk 0:03:03]} 16. a4 {[%clk 0:02:58.9]} 16...
Qe8 {[%clk 0:03:00.1]} 17. b5 {[%clk 0:02:58.3]} 17... Kh8 {[%clk 0:02:54.7]}
18. Ba3 {[%clk 0:02:58.7]} 18... Rf6 {[%clk 0:02:50.3]} 19. f3 {[%clk
0:02:52.2]} 19... exf3 {[%clk 0:02:23.5]} 20. Nxf3 {[%clk 0:02:52]} 20... Ng6
{[%clk 0:02:19.6]} 21. Ng5 {[%clk 0:02:29.8]} 21... Bg8 {[%clk 0:02:10.2]} 22.
Rae1 {[%clk 0:02:26.8]} 22... Qd7 {[%clk 0:02:02.6]} 23. e4 {[%clk 0:02:03.5]}
23... fxe4 {[%clk 0:02:01.3]} 24. Nxe4 {[%clk 0:02:00.3]} 24... Rxf1+ {[%clk
0:01:59.5]} 25. Rxf1 {[%clk 0:02:02.2]} 25... Ne3 {[%clk 0:01:21.9]} 26. Qxe3
{[%clk 0:01:50.8]} 26... Bxc4 {[%clk 0:01:21.9]} 27. Rc1 {[%clk 0:01:24.4]}
27... cxb5 {[%clk 0:01:14.9]} 28. axb5 {[%clk 0:01:23.5]} 28... Bxb5 {[%clk
0:01:11.9]} 29. Nd6 {[%clk 0:01:11.7]} 29... Bc6 {[%clk 0:01:06.5]} 30. Qg5
{[%clk 0:01:02]} 30... Qe6 {[%clk 0:00:41.6]} 31. Rf1 {[%clk 0:00:22.8]} 31...
Qd5 {[%clk 0:00:32]} 32. Nf5 {[%clk 0:00:15.5]} 32... Re8 {[%clk 0:00:17.2]} 33.
h4 {[%clk 0:00:14.3]} 33... Rg8 {[%clk 0:00:11.1]} 34. h5 {[%clk 0:00:14.9]}
34... Nh4 {[%clk 0:00:11]} 35. Rf2 {[%clk 0:00:11.5]} 35... Nxf5 {[%clk
0:00:07.4]} 36. Rxf5 {[%clk 0:00:09]} 36... Qd8 {[%clk 0:00:08.5]} 37. Qf4
{[%clk 0:00:06.6]} 37... Qe8 {[%clk 0:00:05.4]} 38. d5 {[%clk 0:00:05.3]} 38...
Qe1+ {[%clk 0:00:05.7]} 39. Kh2 {[%clk 0:00:06.3]} 39... Bd7 {[%clk 0:00:07.2]}
40. Rf8 {[%clk 0:00:05.4]} 40... Qb1 {[%clk 0:00:02.6]} 41. Rxg8+ {[%clk
0:00:06]} 41... Kxg8 {[%clk 0:00:03.9]} 42. Qf8# {[%clk 0:00:07.2]} 1-0

[Event "*** Titled Tuesday Blitz"]
[Site "Chess.com"]
[Date "2019.09.03"]
[Round "5"]
[White "HouseOfDurin"]
[Black "ChristianAlm"]
[Result "1-0"]
[WhiteElo "1982"]
[BlackElo "2287"]
[TimeControl "180+2"]
[EndTime "16:06:50 PDT"]
[Termination "HouseOfDurin won by resignation"]

1. d4 {[%clk 0:03:01.8]} 1... d5 {[%clk 0:02:59.1]} 2. Bg5 {[%clk 0:03:02.1]}
2... Nf6 {[%clk 0:02:57.9]} 3. Bxf6 {[%clk 0:03:03.1]} 3... exf6 {[%clk
0:02:58.9]} 4. e3 {[%clk 0:03:04.7]} 4... Bd6 {[%clk 0:02:59.8]} 5. c4 {[%clk
0:03:05.8]} 5... c6 {[%clk 0:03:00.9]} 6. cxd5 {[%clk 0:03:06.4]} 6... cxd5
{[%clk 0:03:02.8]} 7. Nc3 {[%clk 0:03:07.7]} 7... Be6 {[%clk 0:03:00.8]} 8. g3
{[%clk 0:03:08.7]} 8... Nd7 {[%clk 0:02:58.7]} 9. Bg2 {[%clk 0:03:10]} 9... Nb6
{[%clk 0:02:59.9]} 10. Nge2 {[%clk 0:03:11]} 10... O-O {[%clk 0:03:00.5]} 11.
O-O {[%clk 0:03:11.8]} 11... Rc8 {[%clk 0:03:02]} 12. a3 {[%clk 0:03:08.2]}
12... Qd7 {[%clk 0:03:02.8]} 13. b4 {[%clk 0:02:58.4]} 13... Bh3 {[%clk
0:03:01.1]} 14. Qb3 {[%clk 0:02:41.1]} 14... Bxg2 {[%clk 0:02:58]} 15. Kxg2
{[%clk 0:02:43]} 15... Nc4 {[%clk 0:02:58]} 16. Rfd1 {[%clk 0:02:41.3]} 16...
Bb8 {[%clk 0:02:52.4]} 17. b5 {[%clk 0:02:22.8]} 17... Rfe8 {[%clk 0:02:47.8]}
18. Rac1 {[%clk 0:02:12.8]} 18... h5 {[%clk 0:02:39.9]} 19. Na4 {[%clk
0:01:54.2]} 19... h4 {[%clk 0:02:28.3]} 20. Nb2 {[%clk 0:01:06.7]} 20... Qf5
{[%clk 0:02:12]} 21. Nxc4 {[%clk 0:00:41.8]} 21... dxc4 {[%clk 0:02:13.9]} 22.
Qc2 {[%clk 0:00:42]} 22... h3+ {[%clk 0:02:05.5]} 23. Kf1 {[%clk 0:00:24.6]}
23... Qf3 {[%clk 0:02:01.1]} 24. Ke1 {[%clk 0:00:17.4]} 24... Bxg3 {[%clk
0:01:34.7]} 25. Nxg3 {[%clk 0:00:09.8]} 25... g6 {[%clk 0:01:27.8]} 26. Qe2
{[%clk 0:00:10.2]} 26... Qg2 {[%clk 0:01:28.9]} 27. Rxc4 {[%clk 0:00:10.2]}
27... Rxc4 {[%clk 0:01:25.7]} 28. Qxc4 {[%clk 0:00:12.1]} 28... Qxh2 {[%clk
0:01:26.1]} 29. Ke2 {[%clk 0:00:13.3]} 29... Qg2 {[%clk 0:01:22.2]} 30. Rh1
{[%clk 0:00:12.4]} 30... f5 {[%clk 0:01:20.7]} 31. Qc1 {[%clk 0:00:04.4]} 31...
f4 {[%clk 0:01:20.9]} 32. Qf1 {[%clk 0:00:05.6]} 32... Qd5 {[%clk 0:01:05.3]}
33. Qxh3 {[%clk 0:00:06.4]} 33... Qxb5+ {[%clk 0:00:58.6]} 34. Kf3 {[%clk
0:00:06]} 34... Qd5+ {[%clk 0:00:49.9]} 35. Kxf4 {[%clk 0:00:06.6]} 35... Qd6+
{[%clk 0:00:39.7]} 36. Kf3 {[%clk 0:00:07.9]} 36... Qd5+ {[%clk 0:00:40.7]} 37.
Ke2 {[%clk 0:00:09.1]} 37... Qa2+ {[%clk 0:00:41.3]} 38. Kf1 {[%clk 0:00:09.6]}
38... Qc4+ {[%clk 0:00:40.3]} 39. Kg2 {[%clk 0:00:10.7]} 39... Qd5+ {[%clk
0:00:40]} 40. f3 {[%clk 0:00:08.7]} 40... Qa2+ {[%clk 0:00:36.6]} 41. Kf1 {[%clk
0:00:10]} 41... Qb1+ {[%clk 0:00:35.3]} 42. Kf2 {[%clk 0:00:11.4]} 42... Qb2+
{[%clk 0:00:31.3]} 43. Ne2 {[%clk 0:00:12.5]} 43... Kf8 {[%clk 0:00:31.9]} 44.
Qh8+ {[%clk 0:00:12.1]} 44... Ke7 {[%clk 0:00:33.1]} 45. Qe5+ {[%clk 0:00:13]}
45... Kd7 {[%clk 0:00:34.4]} 46. Qd5+ {[%clk 0:00:13.6]} 46... Kc8 {[%clk
0:00:32.3]} 47. Qxf7 {[%clk 0:00:12.7]} 47... Rd8 {[%clk 0:00:30.8]} 48. Rh7
{[%clk 0:00:13.3]} 48... Kb8 {[%clk 0:00:23.6]} 49. Qc7+ {[%clk 0:00:13.1]} 1-0

[Event "*** Titled Tuesday Blitz"]
[Site "Chess.com"]
[Date "2019.09.03"]
[Round "5"]
[White "Potosino1970"]
[Black "imdvb6307"]
[Result "0-1"]
[WhiteElo "2559"]
[BlackElo "2428"]
[TimeControl "180+2"]
[EndTime "16:06:58 PDT"]
[Termination "imdvb6307 won by resignation"]

1. e4 {[%clk 0:03:01.9]} 1... e5 {[%clk 0:02:55.4]} 2. Nf3 {[%clk 0:03:01.9]}
2... Nf6 {[%clk 0:02:56]} 3. Nxe5 {[%clk 0:03:01.9]} 3... d6 {[%clk 0:02:56.7]}
4. Nf3 {[%clk 0:03:03.4]} 4... Nxe4 {[%clk 0:02:57.5]} 5. Bd3 {[%clk 0:03:04.3]}
5... Nf6 {[%clk 0:02:29.5]} 6. O-O {[%clk 0:03:04.4]} 6... Be7 {[%clk
0:02:28.2]} 7. c3 {[%clk 0:03:05.4]} 7... O-O {[%clk 0:02:23.4]} 8. h3 {[%clk
0:03:04.6]} 8... c5 {[%clk 0:02:14.6]} 9. Bc2 {[%clk 0:03:05.4]} 9... Nc6 {[%clk
0:02:15.3]} 10. d4 {[%clk 0:03:06.1]} 10... d5 {[%clk 0:02:16.4]} 11. dxc5
{[%clk 0:03:00.8]} 11... Bxc5 {[%clk 0:02:17.2]} 12. Bg5 {[%clk 0:03:01.5]}
12... Be6 {[%clk 0:02:17.7]} 13. Nbd2 {[%clk 0:03:01.7]} 13... h6 {[%clk
0:02:17.8]} 14. Bh4 {[%clk 0:03:01.7]} 14... Bd6 {[%clk 0:00:39.2]} 15. Nb3
{[%clk 0:02:55.1]} 15... Re8 {[%clk 0:00:37.7]} 16. Qd3 {[%clk 0:02:51.5]} 16...
g5 {[%clk 0:00:32.5]} 17. Nxg5 {[%clk 0:02:52]} 17... hxg5 {[%clk 0:00:32.8]}
18. Bxg5 {[%clk 0:02:53.1]} 18... Ne5 {[%clk 0:00:34.3]} 19. Qd4 {[%clk
0:02:47.7]} 19... Ned7 {[%clk 0:00:29.6]} 20. Rae1 {[%clk 0:02:43.1]} 20... Be7
{[%clk 0:00:26.2]} 21. f4 {[%clk 0:02:43.1]} 21... Nf8 {[%clk 0:00:20.3]} 22. f5
{[%clk 0:02:41.6]} 22... N8h7 {[%clk 0:00:17.9]} 23. Bh6 {[%clk 0:01:58]} 23...
Bd7 {[%clk 0:00:18.6]} 24. Re3 {[%clk 0:01:51.3]} 24... Bf8 {[%clk 0:00:18.3]}
25. Rg3+ {[%clk 0:01:49.4]} 25... Kh8 {[%clk 0:00:18.8]} 26. Bxf8 {[%clk
0:01:44.3]} 26... Rxf8 {[%clk 0:00:19.6]} 27. Nc5 {[%clk 0:01:45.9]} 27... Bb5
{[%clk 0:00:15.5]} 28. Re1 {[%clk 0:01:45.3]} 28... Qb6 {[%clk 0:00:15.5]} 29.
Rge3 {[%clk 0:01:42.4]} 29... Rae8 {[%clk 0:00:16.2]} 30. a4 {[%clk 0:01:39.2]}
30... Bc6 {[%clk 0:00:16.9]} 31. b4 {[%clk 0:01:38.5]} 31... Rxe3 {[%clk
0:00:14.7]} 32. Rxe3 {[%clk 0:01:40.4]} 32... Re8 {[%clk 0:00:15.7]} 33. Rxe8+
{[%clk 0:01:05]} 33... Bxe8 {[%clk 0:00:16.5]} 34. g4 {[%clk 0:01:06.5]} 34...
Kg8 {[%clk 0:00:15.3]} 35. h4 {[%clk 0:01:06.6]} 35... Qc7 {[%clk 0:00:13.5]}
36. Kg2 {[%clk 0:01:07.5]} 36... b6 {[%clk 0:00:12.7]} 37. Na6 {[%clk
0:00:59.9]} 37... Qc4 {[%clk 0:00:11.3]} 38. Qxc4 {[%clk 0:00:56.8]} 38... dxc4
{[%clk 0:00:12]} 39. Kf3 {[%clk 0:00:57.1]} 39... Bc6+ {[%clk 0:00:12.1]} 40.
Kf4 {[%clk 0:00:58.3]} 40... Nd5+ {[%clk 0:00:13.1]} 41. Ke5 {[%clk 0:00:59]}
41... Nxc3 {[%clk 0:00:14.3]} 42. Kd6 {[%clk 0:00:59.3]} 42... Bxa4 {[%clk
0:00:15]} 43. Bxa4 {[%clk 0:00:55.7]} 43... Nxa4 {[%clk 0:00:15.9]} 44. b5
{[%clk 0:00:56.9]} 44... c3 {[%clk 0:00:16.7]} 45. Nb4 {[%clk 0:00:57.7]} 45...
Nf6 {[%clk 0:00:17.8]} 46. g5 {[%clk 0:00:58.5]} 46... Ne4+ {[%clk 0:00:18.8]}
47. Kc7 {[%clk 0:00:55.2]} 47... Nd2 {[%clk 0:00:12.6]} 48. Kd7 {[%clk
0:00:50.8]} 48... Nf3 {[%clk 0:00:13.3]} 49. Ke7 {[%clk 0:00:50.6]} 49... Nxh4
{[%clk 0:00:13.3]} 50. f6 {[%clk 0:00:51]} 50... Ng6+ {[%clk 0:00:13.9]} 51. Ke8
{[%clk 0:00:51.6]} 51... Ne5 {[%clk 0:00:15.1]} 52. Ke7 {[%clk 0:00:48.3]} 52...
Kh7 {[%clk 0:00:15.2]} 53. Kd6 {[%clk 0:00:48.2]} 53... Nf3 {[%clk 0:00:15.1]}
54. Ke7 {[%clk 0:00:47.9]} 54... Kg6 {[%clk 0:00:15.5]} 0-1

[Event "*** Titled Tuesday Blitz"]
[Site "Chess.com"]
[Date "2019.09.03"]
[Round "5"]
[White "YQPerez"]
[Black "Thjop"]
[Result "1-0"]
[WhiteElo "2771"]
[BlackElo "2566"]
[TimeControl "180+2"]
[EndTime "16:07:10 PDT"]
[Termination "YQPerez won by resignation"]

1. e4 {[%clk 0:03:01.9]} 1... e6 {[%clk 0:02:59.9]} 2. d3 {[%clk 0:02:59.7]}
2... d5 {[%clk 0:03:01.8]} 3. Nd2 {[%clk 0:03:00.4]} 3... c5 {[%clk 0:03:02.5]}
4. Ngf3 {[%clk 0:03:00.5]} 4... Nc6 {[%clk 0:03:03.9]} 5. g3 {[%clk 0:02:59.4]}
5... g6 {[%clk 0:03:05.2]} 6. Bg2 {[%clk 0:02:59.6]} 6... Bg7 {[%clk 0:03:06.7]}
7. O-O {[%clk 0:02:59.9]} 7... Nge7 {[%clk 0:03:08.1]} 8. Re1 {[%clk 0:02:58.2]}
8... O-O {[%clk 0:03:09.3]} 9. c3 {[%clk 0:02:56.9]} 9... b6 {[%clk 0:03:07.6]}
10. e5 {[%clk 0:02:39]} 10... Qc7 {[%clk 0:03:07.1]} 11. Qe2 {[%clk 0:02:37.5]}
11... h6 {[%clk 0:02:54.5]} 12. h4 {[%clk 0:02:36.3]} 12... Bd7 {[%clk
0:02:46.1]} 13. Nf1 {[%clk 0:02:33.7]} 13... f6 {[%clk 0:02:42.6]} 14. Bf4
{[%clk 0:02:26.1]} 14... fxe5 {[%clk 0:02:35.5]} 15. Nxe5 {[%clk 0:02:28]} 15...
Nxe5 {[%clk 0:02:32.9]} 16. Bxe5 {[%clk 0:02:29.9]} 16... Bxe5 {[%clk 0:02:32]}
17. Qxe5 {[%clk 0:02:31]} 17... Qxe5 {[%clk 0:02:33.6]} 18. Rxe5 {[%clk
0:02:31.7]} 18... Rf5 {[%clk 0:02:23.6]} 19. Re2 {[%clk 0:02:29.7]} 19... Rd8
{[%clk 0:02:20.1]} 20. Bh3 {[%clk 0:02:27.5]} 20... Rf6 {[%clk 0:02:16.5]} 21.
Nh2 {[%clk 0:02:26.7]} 21... h5 {[%clk 0:02:15.1]} 22. Rae1 {[%clk 0:02:23.5]}
22... Nf5 {[%clk 0:02:11.2]} 23. Bxf5 {[%clk 0:02:19.7]} 23... exf5 {[%clk
0:02:09.8]} 24. f4 {[%clk 0:02:15.2]} 24... Bb5 {[%clk 0:02:03.8]} 25. Rd2
{[%clk 0:02:10]} 25... d4 {[%clk 0:02:02.2]} 26. c4 {[%clk 0:02:08.9]} 26... Bc6
{[%clk 0:02:01.8]} 27. Rde2 {[%clk 0:02:07.8]} 27... Kf8 {[%clk 0:01:51]} 28.
Kf2 {[%clk 0:01:48.9]} 28... a5 {[%clk 0:01:36.8]} 29. Re6 {[%clk 0:01:42]}
29... Rd6 {[%clk 0:01:31.1]} 30. R6e5 {[%clk 0:01:33.9]} 30... Rd8 {[%clk
0:01:27.9]} 31. Nf1 {[%clk 0:01:24.3]} 31... Re8 {[%clk 0:01:22.7]} 32. Nd2
{[%clk 0:01:22.7]} 32... Rxe5 {[%clk 0:01:17.6]} 33. fxe5 {[%clk 0:01:18.5]}
33... Rf7 {[%clk 0:01:14.9]} 34. Nf3 {[%clk 0:01:16.4]} 34... f4 {[%clk
0:00:50.7]} 35. Ng5 {[%clk 0:01:14.8]} 35... fxg3+ {[%clk 0:00:51.2]} 36. Kxg3
{[%clk 0:01:15.8]} 36... Rf5 {[%clk 0:00:50]} 37. b3 {[%clk 0:01:07.4]} 37...
Ke7 {[%clk 0:00:49.8]} 38. a3 {[%clk 0:01:03.3]} 38... Rf8 {[%clk 0:00:42.8]}
39. b4 {[%clk 0:00:47.9]} 39... axb4 {[%clk 0:00:40.4]} 40. axb4 {[%clk
0:00:49.8]} 40... Ra8 {[%clk 0:00:37.5]} 41. b5 {[%clk 0:00:44.9]} 41... Bd7
{[%clk 0:00:26.1]} 42. e6 {[%clk 0:00:43.7]} 42... Be8 {[%clk 0:00:27.2]} 43.
Kf4 {[%clk 0:00:34.8]} 43... Ra3 {[%clk 0:00:24.8]} 44. Ke4 {[%clk 0:00:36]}
44... Ra2 {[%clk 0:00:21.3]} 45. Kd5 {[%clk 0:00:34.3]} 45... Rf2 {[%clk
0:00:19]} 46. Ra1 {[%clk 0:00:32.8]} 46... Rf5+ {[%clk 0:00:15]} 47. Ke4 {[%clk
0:00:34]} 47... Kf6 {[%clk 0:00:16.3]} 48. Ra8 {[%clk 0:00:31.8]} 48... Re5+
{[%clk 0:00:16.4]} 49. Kf4 {[%clk 0:00:29.9]} 49... Rf5+ {[%clk 0:00:17.6]} 50.
Kg3 {[%clk 0:00:31.4]} 50... Ke7 {[%clk 0:00:17.6]} 51. Rb8 {[%clk 0:00:30.1]}
51... Re5 {[%clk 0:00:18.6]} 52. Rxb6 {[%clk 0:00:29]} 52... Re3+ {[%clk
0:00:19.5]} 53. Kf4 {[%clk 0:00:27.7]} 53... Rxd3 {[%clk 0:00:21.4]} 54. Rb7+
{[%clk 0:00:27.2]} 54... Kf6 {[%clk 0:00:20]} 55. Ne4+ {[%clk 0:00:27]} 55...
Kxe6 {[%clk 0:00:15.7]} 56. Nxc5+ {[%clk 0:00:27.9]} 56... Kd6 {[%clk
0:00:16.4]} 57. Nxd3 {[%clk 0:00:29.8]} 1-0

[Event "*** Titled Tuesday Blitz"]
[Site "Chess.com"]
[Date "2019.09.03"]
[Round "5"]
[White "BASSU1"]
[Black "TenisMaster"]
[Result "1-0"]
[WhiteElo "2558"]
[BlackElo "2773"]
[TimeControl "180+2"]
[EndTime "16:07:11 PDT"]
[Termination "BASSU1 won by resignation"]

1. e4 {[%clk 0:03:01.2]} 1... c5 {[%clk 0:03:00.6]} 2. Nf3 {[%clk 0:03:01.9]}
2... e6 {[%clk 0:03:01.9]} 3. g3 {[%clk 0:02:57.9]} 3... b6 {[%clk 0:02:57.4]}
4. Bg2 {[%clk 0:02:56.2]} 4... Bb7 {[%clk 0:02:58.4]} 5. Nc3 {[%clk 0:02:54.6]}
5... d6 {[%clk 0:02:44.8]} 6. d4 {[%clk 0:02:53.5]} 6... cxd4 {[%clk 0:02:45.2]}
7. Nxd4 {[%clk 0:02:53.5]} 7... Nd7 {[%clk 0:02:45.1]} 8. O-O {[%clk 0:02:54.4]}
8... a6 {[%clk 0:02:45.7]} 9. Re1 {[%clk 0:02:49.7]} 9... Be7 {[%clk 0:02:46.1]}
10. Bh3 {[%clk 0:02:38.1]} 10... Bf6 {[%clk 0:02:28.5]} 11. Bxe6 {[%clk
0:02:35.5]} 11... fxe6 {[%clk 0:02:29.1]} 12. Nxe6 {[%clk 0:02:23.4]} 12... Qc8
{[%clk 0:02:29.1]} 13. Bf4 {[%clk 0:02:23.6]} 13... Nc5 {[%clk 0:02:12.1]} 14.
Nxg7+ {[%clk 0:01:21.5]} 14... Bxg7 {[%clk 0:02:09.2]} 15. Qh5+ {[%clk
0:01:22.1]} 15... Kf8 {[%clk 0:00:23.8]} 16. Bxd6+ {[%clk 0:01:19.5]} 16... Ne7
{[%clk 0:00:24.8]} 17. Nd5 {[%clk 0:01:20.8]} 17... Qe6 {[%clk 0:00:25.8]} 18.
Bxe7+ {[%clk 0:01:04.6]} 18... Kg8 {[%clk 0:00:26.7]} 19. Bxc5 {[%clk
0:00:46.1]} 19... bxc5 {[%clk 0:00:28.6]} 20. Nc7 {[%clk 0:00:40]} 20... Qf7
{[%clk 0:00:26.6]} 21. Qxf7+ {[%clk 0:00:40.4]} 21... Kxf7 {[%clk 0:00:28.5]}
22. Nxa8 {[%clk 0:00:42.1]} 22... Rxa8 {[%clk 0:00:26.4]} 23. Rad1 {[%clk
0:00:35.5]} 23... Ke7 {[%clk 0:00:27.1]} 24. c3 {[%clk 0:00:36.2]} 24... Bc6
{[%clk 0:00:27.9]} 25. f4 {[%clk 0:00:36.5]} 25... Rb8 {[%clk 0:00:28.5]} 26.
Rd2 {[%clk 0:00:37.1]} 26... c4 {[%clk 0:00:27.1]} 27. e5 {[%clk 0:00:37.4]}
27... Bf8 {[%clk 0:00:24.2]} 28. h3 {[%clk 0:00:30.9]} 28... Ke6 {[%clk
0:00:24]} 29. g4 {[%clk 0:00:29.4]} 29... Bc5+ {[%clk 0:00:24.9]} 30. Kh2 {[%clk
0:00:30.7]} 30... h5 {[%clk 0:00:22.2]} 31. f5+ {[%clk 0:00:30.2]} 31... Ke7
{[%clk 0:00:23]} 32. g5 {[%clk 0:00:31.1]} 32... Rf8 {[%clk 0:00:19.9]} 33. Rf1
{[%clk 0:00:21.5]} 33... Be3 {[%clk 0:00:19.6]} 34. f6+ {[%clk 0:00:19.7]} 34...
Kf7 {[%clk 0:00:19.5]} 35. e6+ {[%clk 0:00:20.4]} 35... Kg6 {[%clk 0:00:14.4]}
36. e7 {[%clk 0:00:21.1]} 36... Rf7 {[%clk 0:00:11.7]} 37. Re2 {[%clk
0:00:22.2]} 37... Bxg5 {[%clk 0:00:12]} 38. e8=Q {[%clk 0:00:22.6]} 38... Bxe8
{[%clk 0:00:13.1]} 39. Rxe8 {[%clk 0:00:24.5]} 39... Bxf6 {[%clk 0:00:14.7]} 40.
Re6 {[%clk 0:00:25.4]} 40... Kg5 {[%clk 0:00:15.7]} 41. h4+ {[%clk 0:00:26.4]}
41... Kg6 {[%clk 0:00:13]} 42. Kg3 {[%clk 0:00:27.7]} 42... a5 {[%clk
0:00:12.8]} 43. Rf4 {[%clk 0:00:28.3]} 43... Kg7 {[%clk 0:00:10.1]} 44. Rfxf6
{[%clk 0:00:29.3]} 44... Rxf6 {[%clk 0:00:10.9]} 45. Rxf6 {[%clk 0:00:31.2]}
45... Kxf6 {[%clk 0:00:12.5]} 46. Kf4 {[%clk 0:00:33.1]} 46... a4 {[%clk
0:00:12.9]} 47. a3 {[%clk 0:00:34.2]} 47... Ke6 {[%clk 0:00:12]} 48. Kg5 {[%clk
0:00:35.5]} 48... Ke5 {[%clk 0:00:13]} 49. Kxh5 {[%clk 0:00:37.4]} 49... Kf5
{[%clk 0:00:14.2]} 50. Kh6 {[%clk 0:00:35.6]} 50... Ke4 {[%clk 0:00:15.6]} 51.
Kg5 {[%clk 0:00:35.2]} 51... Kd3 {[%clk 0:00:17.5]} 52. h5 {[%clk 0:00:36.8]}
52... Kc2 {[%clk 0:00:18.6]} 53. h6 {[%clk 0:00:38.2]} 53... Kxb2 {[%clk
0:00:20.3]} 54. h7 {[%clk 0:00:39.7]} 54... Kxa3 {[%clk 0:00:21.9]} 55. h8=Q
{[%clk 0:00:41]} 55... Kb3 {[%clk 0:00:23.2]} 56. Qh1 {[%clk 0:00:39.9]} 56...
a3 {[%clk 0:00:22.2]} 57. Qc1 {[%clk 0:00:39.2]} 57... a2 {[%clk 0:00:21.5]} 58.
Qa1 {[%clk 0:00:40.2]} 58... Kc2 {[%clk 0:00:20.4]} 59. Kf4 {[%clk 0:00:42.1]}
59... Kd3 {[%clk 0:00:20.7]} 60. Ke5 {[%clk 0:00:43.2]} 1-0

[Event "*** Titled Tuesday Blitz"]
[Site "Chess.com"]
[Date "2019.09.03"]
[Round "5"]
[White "albano87"]
[Black "pheonixking2000"]
[Result "0-1"]
[WhiteElo "2084"]
[BlackElo "2712"]
[TimeControl "180+2"]
[EndTime "16:07:12 PDT"]
[Termination "pheonixking2000 won by resignation"]

1. d4 {[%clk 0:03:01.7]} 1... Nf6 {[%clk 0:02:59.5]} 2. Nf3 {[%clk 0:03:03.2]}
2... c5 {[%clk 0:02:54.7]} 3. e3 {[%clk 0:03:03.4]} 3... g6 {[%clk 0:02:55.1]}
4. Be2 {[%clk 0:02:57.4]} 4... Bg7 {[%clk 0:02:56.4]} 5. O-O {[%clk 0:02:59.1]}
5... O-O {[%clk 0:02:58]} 6. dxc5 {[%clk 0:03:00.7]} 6... Qc7 {[%clk 0:02:54.1]}
7. a3 {[%clk 0:03:01.3]} 7... a5 {[%clk 0:02:53.7]} 8. Bd2 {[%clk 0:02:55.3]}
8... Na6 {[%clk 0:02:52.3]} 9. b4 {[%clk 0:02:37.1]} 9... Ne4 {[%clk 0:02:42.6]}
10. Ra2 {[%clk 0:02:35.6]} 10... b6 {[%clk 0:02:19.6]} 11. cxb6 {[%clk
0:02:32.8]} 11... Qxb6 {[%clk 0:02:21.5]} 12. b5 {[%clk 0:02:26.2]} 12... Nac5
{[%clk 0:02:22]} 13. c4 {[%clk 0:02:23.4]} 13... Bb7 {[%clk 0:02:18.5]} 14. Qc2
{[%clk 0:02:21.5]} 14... Rac8 {[%clk 0:02:19.2]} 15. Nc3 {[%clk 0:02:22.4]}
15... Nxd2 {[%clk 0:02:17.8]} 16. Qxd2 {[%clk 0:02:17.9]} 16... e6 {[%clk
0:02:05.7]} 17. Nd4 {[%clk 0:02:13.6]} 17... Qc7 {[%clk 0:02:04]} 18. Rd1 {[%clk
0:02:01.8]} 18... Rfd8 {[%clk 0:02:05.2]} 19. Rc2 {[%clk 0:01:55.4]} 19... Qb8
{[%clk 0:01:59.9]} 20. Bf3 {[%clk 0:01:53.2]} 20... e5 {[%clk 0:01:36.8]} 21.
Bxb7 {[%clk 0:01:47]} 21... exd4 {[%clk 0:01:37.8]} 22. exd4 {[%clk 0:01:47.3]}
22... Nb3 {[%clk 0:01:37.8]} 23. Qe3 {[%clk 0:01:42.6]} 23... Qxb7 {[%clk
0:01:38.1]} 24. Nd5 {[%clk 0:01:43.8]} 24... a4 {[%clk 0:01:25]} 25. Ne7+ {[%clk
0:01:41.9]} 25... Kf8 {[%clk 0:01:25.8]} 26. Nxc8 {[%clk 0:01:41.3]} 26... Rxc8
{[%clk 0:01:27.6]} 27. d5 {[%clk 0:00:59.8]} 27... d6 {[%clk 0:01:25.6]} 28. Re2
{[%clk 0:00:53.4]} 28... Kg8 {[%clk 0:01:21]} 29. Qf4 {[%clk 0:00:47.2]} 29...
Be5 {[%clk 0:01:15.3]} 30. Rxe5 {[%clk 0:00:48.5]} 30... dxe5 {[%clk 0:01:16.2]}
31. Qxe5 {[%clk 0:00:50]} 31... Nc5 {[%clk 0:01:14.5]} 32. d6 {[%clk 0:00:49.4]}
32... Qd7 {[%clk 0:01:13.7]} 33. h4 {[%clk 0:00:46.7]} 33... Ne6 {[%clk
0:01:14.6]} 34. b6 {[%clk 0:00:40.9]} 34... Qc6 {[%clk 0:01:08.7]} 35. c5 {[%clk
0:00:24.3]} 35... Qxc5 {[%clk 0:01:04.2]} 36. d7 {[%clk 0:00:24.3]} 36... Rd8
{[%clk 0:01:05.3]} 37. Qf6 {[%clk 0:00:21.8]} 37... Qxb6 {[%clk 0:01:03.7]} 38.
h5 {[%clk 0:00:23.3]} 38... gxh5 {[%clk 0:01:04.4]} 39. Re1 {[%clk 0:00:16.4]}
39... Rxd7 {[%clk 0:00:54.2]} 40. Re3 {[%clk 0:00:11.3]} 40... h4 {[%clk
0:00:39]} 41. Qxh4 {[%clk 0:00:11.2]} 41... Qb1+ {[%clk 0:00:34.6]} 42. Kh2
{[%clk 0:00:12.3]} 42... Qf5 {[%clk 0:00:36.3]} 43. Rg3+ {[%clk 0:00:11.8]}
43... Kf8 {[%clk 0:00:37.4]} 44. Qxa4 {[%clk 0:00:09.4]} 44... Qh5+ {[%clk
0:00:35.2]} 45. Rh3 {[%clk 0:00:11]} 45... Qe5+ {[%clk 0:00:36.7]} 46. Rg3
{[%clk 0:00:12.7]} 46... Rd4 {[%clk 0:00:35.5]} 47. Qa8+ {[%clk 0:00:13.6]}
47... Ke7 {[%clk 0:00:36.6]} 48. Qb7+ {[%clk 0:00:14.9]} 48... Kf6 {[%clk
0:00:34.9]} 49. Qf3+ {[%clk 0:00:16.4]} 49... Rf4 {[%clk 0:00:35.6]} 50. Qc3
{[%clk 0:00:15.7]} 50... Qxc3 {[%clk 0:00:34.1]} 51. Rd3 {[%clk 0:00:17]} 51...
Qxd3 {[%clk 0:00:33.6]} 0-1